bitfinex/quotes_ETHUSD_20240714
["timestamp","ask_amount","ask_price","bid_price","bid_amount"]
[1720930676904,1.20204112,3189.8,3189.7,11.644196]
[1720930678296,1.20205252,3189.8,3189.7,11.644196]
[1720930679518,0.1161013,3189.8,3189.7,11.644196]
[1720930679817,1.20206885,3189.8,3189.7,11.644196]
[1720930682184,2.2880288,3189.8,3189.7,11.644196]
[1720930682993,2.2880257,3189.8,3189.7,11.644196]
[1720930685673,2.28802801,3189.8,3189.7,11.644196]
[1720930688854,2.2880227,3189.8,3189.7,11.644196]
[1720930689433,2.28802017,3189.8,3189.7,11.644196]
[1720930692126,2.28799994,3189.8,3189.7,11.644196]
[1720930692380,1.20203619,3189.8,3189.7,11.644196]
[1720930695566,1.20201772,3189.8,3189.7,11.644196]
[1720930697998,1.20201772,3189.8,3189.7,14.779286]
[1720930698762,0.1161013,3189.8,3189.7,14.779286]
[1720930699760,1.20201833,3189.8,3189.7,14.779286]
[1720930700496,1.20201833,3189.8,3189.7,11.644196]
[1720930701595,1.20201833,3189.8,3189.7,14.779286]
[1720930702124,1.20201833,3189.8,3189.7,11.644196]
[1720930702312,1.20201661,3189.8,3189.7,11.644196]
[1720930702614,1.20201661,3189.8,3189.7,14.779286]
[1720930702904,1.20201795,3189.8,3189.7,14.779286]
[1720930703201,1.20201795,3189.8,3189.7,11.644196]
[1720930704192,1.20201795,3189.8,3189.7,14.779286]
[1720930704702,1.20201795,3189.8,3189.7,11.644196]
[1720930704909,1.20201795,3189.8,3189.7,14.779286]
[1720930705599,1.20193549,3189.8,3189.7,17.272486]
[1720930709005,1.20193459,3189.8,3189.7,17.272486]
[1720930709561,1.20193459,3189.8,3189.7,20.407576]
[1720930710159,1.20188198,3189.8,3189.7,20.407576]
[1720930710465,0.1161013,3189.8,3189.7,20.407576]
[1720930711314,0.1161013,3189.8,3189.7,21.49857592]
[1720930711615,0.1161013,3189.8,3189.7,23.13494963]
[1720930711783,2.3216,3191.0,3190.9,3.13391]
[1720930711965,3.40717519,3191.0,3190.9,4.49691]
[1720930712176,2.3216,3191.0,3190.9,4.49691]
[1720930712380,3.40717828,3191.0,3190.9,4.49691]
[1720930712808,1.08557828,3191.0,3190.9,7.63082]
[1720930713128,1.08557828,3191.0,3190.9,8.393902]
[1720930713328,1.08557828,3191.0,3190.9,11.527812]
[1720930714333,1.08557828,3191.0,3190.9,10.714812]
[1720930714620,1.08557828,3191.0,3190.9,11.527812]
[1720930715523,2.3216,3191.4,3191.3,3.13351]
[1720930715728,3.4071721,3191.4,3191.3,3.68351]
[1720930716029,3.40717068,3191.4,3191.3,3.68351]
[1720930716184,1.08557068,3191.4,3191.3,7.580025]
[1720930716788,2.3216,3192.0,3191.8,3.13293]
[1720930717122,2.3216,3192.5,3192.0,3.13279]
[1720930717338,1.08526085,3192.4,3192.0,3.13279]
[1720930717541,1.08526085,3192.3,3192.0,3.13279]
[1720930717686,1.08527165,3192.2,3192.0,3.13279]
[1720930717887,2.3216,3192.5,3192.0,3.13279]
[1720930717888,1.08527165,3192.1,3192.0,3.13279]
[1720930718115,1.08527165,3192.1,3192.0,3.68279]
[1720930718588,2.3216,3192.3,3192.0,3.68279]
[1720930719129,1.08530692,3192.2,3192.0,3.68279]
[1720930719324,1.08530692,3192.1,3192.0,3.68279]
[1720930719839,1.08530692,3192.1,3192.0,0.55]
[1720930720531,2.3216,3192.3,3192.0,0.55]
[1720930720532,1.08530692,3192.2,3192.0,0.55]
[1720930720686,1.08530692,3192.1,3192.0,0.55]
[1720930720891,1.08530692,3192.2,3192.0,0.55]
[1720930721088,1.08530692,3192.2,3192.0,3.68281]
[1720930721400,1.08530692,3192.5,3192.0,4.364384]
[1720930721601,1.08530692,3192.4,3192.0,3.68281]
[1720930721818,1.08530692,3192.3,3192.0,3.68281]
[1720930721989,2.7903908,3192.6,3192.0,3.68281]
[1720930722200,1.08523939,3192.5,3192.4,3.13243]
[1720930722507,0.1161013,3193.0,3192.5,3.1323]
[1720930722701,1.0850606,3192.9,3192.5,3.1323]
[1720930722910,1.0850606,3192.8,3192.5,3.1323]
[1720930723103,0.1161013,3193.0,3192.5,3.1323]
[1720930723316,1.08505417,3192.9,3192.7,3.13206]
[1720930723492,0.1161013,3193.0,3192.8,3.68197]
[1720930724907,0.1161013,3193.0,3192.6,3.13223]
[1720930725214,0.37392143,3193.0,3192.5,3.13233]
[1720930725414,0.37392143,3193.0,3192.6,3.68222]
[1720930725613,0.1161013,3193.0,3192.6,3.68222]
[1720930727291,0.1161013,3193.0,3192.6,3.6822]
[1720930728519,0.1161013,3193.0,3192.6,3.68219]
[1720930728723,0.1161013,3193.0,3192.7,3.13212]
[1720930729028,0.1161013,3193.0,3192.8,0.55]
[1720930729411,0.1161013,3193.0,3192.7,0.55]
[1720930731230,0.1161013,3193.0,3192.8,3.13197]
[1720930731394,0.1161013,3193.0,3192.9,0.55]
[1720930733408,0.1161013,3193.0,3192.9,3.68194]
[1720930733594,0.1161013,3193.0,3192.9,4.363331]
[1720930739212,0.1161013,3193.0,3192.9,3.68194]
[1720930739417,1.20109505,3193.0,3192.9,3.68194]
[1720930740456,1.20109505,3193.0,3192.8,3.13197]
[1720930740602,1.08499375,3192.9,3192.4,3.94538]
[1720930740804,1.08499375,3192.9,3192.7,3.13213]
[1720930740805,0.02925585,3192.8,3192.7,3.13213]
[1720930741012,0.1161013,3193.0,3192.7,6.00523]
[1720930741256,0.00856758,3194.7,3192.9,3.94489]
[1720930741569,1.08457697,3194.6,3194.5,0.813]
[1720930741704,0.00856758,3194.7,3194.5,3.94331]
[1720930741904,0.00856758,3194.7,3194.6,0.55]
[1720930742145,0.00856758,3194.7,3193.6,2.3231]
[1720930742331,1.09298162,3194.7,3194.3,3.13056]
[1720930742543,1.08441404,3194.6,3194.4,3.68044]
[1720930742851,0.00856758,3194.7,3194.6,3.13028]
[1720930743016,1.09300982,3194.7,3194.4,3.13044]
[1720930743216,0.00856758,3194.7,3194.5,3.1303]
[1720930743424,0.00856758,3194.7,3194.5,6.26067]
[1720930743631,0.00856758,3194.7,3194.6,0.55]
[1720930744314,0.00856758,3194.7,3194.6,5.8731]
[1720930744768,0.00856758,3194.7,3194.6,3.55]
[1720930746754,1e-08,3194.7,3194.6,3.55]
[1720930747051,1e-08,3194.7,3194.6,5.8731]
[1720930747360,0.1161013,3196.2,3194.6,5.8731]
[1720930747566,0.1161013,3196.2,3194.9,3.12998]
[1720930747715,0.1161013,3196.2,3195.8,3.12908]
[1720930748581,0.1161013,3196.2,3195.9,3.12899]
[1720930750964,0.1161013,3196.2,3196.1,3.12881]
[1720930751130,0.1161013,3196.2,3196.1,6.25762]
[1720930751318,0.1161013,3196.2,3196.1,7.488382]
[1720930751720,0.1161013,3196.2,3196.1,9.811482]
[1720930751922,0.1161013,3196.2,3196.1,20.569102]
[1720930752221,0.1161013,3196.2,3196.1,19.069102]
[1720930752425,2.4068,3198.2,3197.2,3.12767]
[1720930752766,0.24068,3198.1,3197.4,3.12753]
[1720930752918,0.24068,3198.1,3197.2,3.12767]
[1720930753119,0.24068,3198.1,3196.9,3.12796]
[1720930753333,0.24068,3198.1,3197.2,3.12769]
[1720930754998,3.1273,3197.7,3196.5,3.12839]
[1720930755185,3.20555964,3197.6,3196.5,3.12839]
[1720930755499,3.20555964,3197.6,3196.1,3.680762]
[1720930755500,5.07155,3197.4,3196.1,3.0]
[1720930755692,5.07155,3197.4,3195.6,4.6931]
[1720930755693,0.747835,3197.3,3196.0,6.1289]
[1720930755989,0.747835,3197.3,3196.2,3.1287]
[1720930756286,0.07820485,3197.2,3196.0,3.12888]
[1720930756599,3.12801,3197.0,3195.9,3.12894]
[1720930756763,3.12805,3196.9,3196.0,3.12888]
[1720930756949,0.312805,3196.8,3196.0,3.12888]
[1720930758152,0.312805,3196.8,3195.7,3.12919]
[1720930758347,2.4068,3196.7,3195.7,3.12919]
[1720930758815,2.4068,3196.7,3195.9,3.129]
[1720930759178,2.4068,3196.7,3195.7,3.12919]
[1720930759515,0.5847735,3196.6,3195.8,3.67909]
[1720930759674,0.5847735,3196.6,3196.0,3.1289]
[1720930760418,0.5847735,3196.6,3195.8,3.67909]
[1720930761028,3.7131135,3196.6,3195.8,0.55]
[1720930761319,0.61199135,3196.5,3195.7,3.55]
[1720930761478,0.61199135,3196.5,3195.7,0.55]
[1720930761674,5.53504,3196.7,3195.8,3.1291]
[1720930762001,2.4068,3196.7,3195.9,3.67895]
[1720930762983,2.4068,3196.7,3195.9,0.55]
[1720930763185,2.4068,3196.7,3196.2,3.1287]
[1720930764323,2.4068,3196.7,3196.3,3.12861]
[1720930764931,3.12787,3197.1,3196.3,3.12861]
[1720930765137,0.852811,3197.0,3196.3,3.12861]
[1720930765356,0.852811,3197.0,3196.5,3.1284]
[1720930765507,2.2725,3197.2,3196.5,3.1284]
[1720930766327,5.40024,3197.2,3196.5,3.1284]
[1720930767354,5.40024,3197.2,3196.3,3.12861]
[1720930767658,5.40024,3197.2,3196.4,0.55]
[1720930767813,3.128,3197.0,3196.1,3.12878]
[1720930768213,3.12804,3196.9,3196.2,0.55]
[1720930768450,3.12804,3196.9,3196.0,3.55]
[1720930768619,3.12804,3196.9,3196.0,0.55]
[1720930769030,3.20625047,3196.9,3195.4,3.12941]
[1720930769238,3.20625047,3196.9,3195.2,7.42]
[1720930769239,3.1285,3196.5,3195.5,6.442331]
[1720930769444,3.12832,3196.6,3195.5,6.442331]
[1720930769613,3.12825,3196.7,3195.7,3.12919]
[1720930769815,1.08392361,3196.6,3195.7,3.12919]
[1720930770018,3.89367176,3196.6,3195.7,3.12919]
[1720930770251,3.12842,3196.5,3195.7,3.12919]
[1720930770832,3.440944,3196.8,3195.5,3.312941]
[1720930771067,1.08386462,3196.7,3195.6,3.55]
[1720930771232,3.12823,3196.7,3195.9,3.12899]
[1720930771431,1.0838921,3196.6,3196.0,0.55]
[1720930771664,3.4723334,3196.7,3196.0,0.55]
[1720930771832,3.12845,3196.5,3195.5,3.442321]
[1720930772020,4.21240686,3196.4,3195.6,3.55]
[1720930772369,3.12852,3196.4,3195.6,3.55]
[1720930772534,3.4723334,3196.7,3195.6,7.3785221]
[1720930772862,4.21226799,3196.6,3195.7,3.12919]
[1720930773166,3.12842,3196.5,3195.8,0.55]
[1720930773371,1.0839362,3196.4,3195.8,0.55]
[1720930773688,3.4723334,3196.7,3195.8,7.97]
[1720930773827,1.08389428,3196.6,3195.8,9.44984221]
[1720930774032,1.08389428,3196.5,3195.9,3.12899]
[1720930774242,1.08389428,3196.4,3196.0,0.55]
[1720930774429,1.08389428,3196.6,3196.0,0.55]
[1720930774629,1.08389428,3196.6,3195.9,0.55]
[1720930774818,3.1285,3196.5,3195.8,7.42]
[1720930775030,1.08389428,3196.4,3195.8,7.42]
[1720930775766,4.21246428,3196.4,3195.8,7.42]
[1720930775922,1.08389428,3196.3,3195.8,7.42]
[1720930776319,3.86265643,3196.4,3195.8,7.42]
[1720930776550,1.08397549,3196.3,3195.8,7.42]
[1720930776728,3.86265643,3196.4,3195.8,7.42]
[1720930776928,1.0839629,3196.3,3195.8,7.42]
[1720930777130,1.0839629,3196.2,3195.8,7.42]
[1720930777335,3.12887,3196.1,3195.8,7.42]
[1720930777542,1.0839629,3196.0,3195.8,7.42]
[1720930777835,1.0839629,3196.0,3194.7,2.2843]
[1720930777836,4.2131234,3195.9,3194.8,10.55005]
[1720930778038,3.12926,3195.7,3194.8,12.146509]
[1720930778367,1.0841234,3195.6,3194.8,12.146509]
[1720930778681,4.2134334,3195.6,3194.8,12.146509]
[1720930778834,1.0841234,3195.5,3194.8,12.146509]
[1720930779457,3.12954,3195.4,3194.8,7.42]
[1720930779982,3.1297,3195.2,3194.8,7.42]
[1720930780182,1.08424723,3195.1,3194.8,7.42]
[1720930780541,3.1297,3195.2,3194.8,7.42]
[1720930780982,3.12989,3195.0,3194.4,7.42]
[1720930781679,1.08443939,3194.9,3194.4,7.42]
[1720930781883,3.13018,3194.7,3194.4,7.42]
[1720930782066,1.08443939,3194.6,3194.4,7.42]
[1720930782379,3.13038,3194.5,3194.4,7.42]
[1720930783095,3.13032,3194.6,3193.7,7.42]
[1720930783247,1.08457909,3194.5,3193.7,7.42]
[1720930783557,3.13032,3194.6,3193.7,8.475118]
[1720930783755,3.13057,3194.3,3193.7,8.475118]
[1720930783954,3.13032,3194.6,3193.7,8.475118]
[1720930784160,3.13039,3194.5,3193.7,8.475118]
[1720930784658,3.13054,3194.4,3193.7,8.475118]
[1720930784859,3.13058,3194.3,3193.7,8.475118]
[1720930785445,3.13058,3194.3,3193.8,0.55]
[1720930788885,3.13032,3194.6,3193.8,1.4525118]
[1720930789266,3.13038,3194.5,3193.8,1.4525118]
[1720930789470,3.13051,3194.4,3193.8,1.4525118]
[1720930790358,0.32798047,3194.3,3193.8,1.4525118]
[1720930791374,0.32798047,3194.3,3193.9,3.13095]
[1720930791566,0.32798047,3194.3,3194.0,3.68086]
[1720930791893,0.32798047,3194.3,3194.2,3.13067]
[1720930792363,0.32798047,3194.3,3194.0,3.13086]
[1720930792564,0.32798047,3194.3,3194.1,0.55]
[1720930794100,0.32798047,3194.3,3194.1,4.048856]
[1720930795278,0.32798047,3194.3,3194.1,0.55]
[1720930795482,0.32798047,3194.3,3193.8,3.55]
[1720930798971,3.45857047,3194.3,3193.8,3.55]
[1720930799208,3.13077,3194.1,3193.8,0.55]
[1720930799386,3.13077,3194.1,3193.6,3.55]
[1720930800900,0.32798047,3194.3,3193.7,3.13115]
[1720930801098,0.32798047,3194.3,3193.8,0.55]
[1720930801610,0.32798047,3194.3,3193.8,3.68105]
[1720930801974,2.4694,3195.6,3194.5,3.13037]
[1720930802179,1.08459823,3195.5,3194.6,3.13027]
[1720930802416,1.08459823,3195.4,3194.7,3.68014]
[1720930802629,1.08430302,3195.3,3194.7,3.68014]
[1720930802815,5.59871,3195.6,3194.8,3.13007]
[1720930803017,1.0842765,3195.5,3194.9,0.55]
[1720930803198,5.59871,3195.6,3194.9,0.55]
[1720930803199,1.0842765,3195.4,3194.9,0.55]
[1720930803394,1.0842765,3195.3,3194.9,4.047947]
[1720930803632,5.59829,3196.1,3195.2,3.12968]
[1720930803833,3.12902,3195.9,3195.3,0.55]
[1720930804005,1.08413104,3195.8,3195.3,0.55]
[1720930804205,1.08413104,3195.8,3195.1,0.55]
[1720930804703,1.08413104,3195.8,3195.1,3.67972]
[1720930805101,1.08413104,3195.8,3194.9,0.368007]
[1720930805102,3.12969,3195.3,3194.4,3.0]
[1720930805340,1.08432818,3195.2,3194.3,3.13056]
[1720930805639,1.08432818,3195.2,3194.1,3.0]
[1720930805640,1.08436256,3195.1,3194.1,3.13076]
[1720930805807,1.08436256,3195.1,3193.9,5.47333]
[1720930805808,3.12998,3194.9,3193.9,2.3424]
[1720930805998,1.16262523,3194.8,3193.8,3.13106]
[1720930806199,1.16262517,3194.7,3193.8,3.444166]
[1720930806534,1.08436256,3194.6,3193.8,3.444166]
[1720930806735,1.08436256,3194.6,3193.5,2.3424]
[1720930807039,1.08436256,3194.5,3193.5,3.13135]
[1720930807611,1.08436256,3194.5,3193.6,3.13117]
[1720930807826,1.08436256,3194.5,3193.9,3.13095]
[1720930808136,1.08436256,3194.5,3193.7,3.13111]
[1720930808340,2.4694,3194.6,3193.8,0.55]
[1720930808541,1.08459748,3194.4,3193.8,0.55]
[1720930808778,1.08459748,3194.3,3193.8,0.55]
[1720930809036,1.08459748,3194.2,3193.8,0.55]
[1720930809241,1.08459748,3194.5,3193.8,0.55]
[1720930809414,1.08459748,3194.4,3193.8,7.97]
[1720930809617,1.08459748,3194.5,3193.8,7.97]
[1720930809949,1.08459748,3194.4,3193.8,7.97]
[1720930810151,0.35539975,3194.4,3193.8,7.42]
[1720930810313,1.08459748,3194.3,3193.8,7.42]
[1720930810521,1.41260689,3194.3,3193.8,7.42]
[1720930810874,1.08459748,3194.2,3193.8,7.42]
[1720930811705,0.32800941,3194.3,3193.8,7.42]
[1720930811912,1.08463369,3194.2,3193.8,7.42]
[1720930812246,1.08463369,3194.2,3193.3,12.92146]
[1720930812430,1.08463369,3194.2,3193.7,3.13108]
[1720930812635,1.08463369,3194.2,3193.8,3.68106]
[1720930813219,1.08463369,3194.2,3193.8,11.10106]
[1720930813423,1.08463369,3194.2,3193.9,3.13095]
[1720930813611,1.08463369,3194.2,3194.0,0.55]
[1720930813938,1.08463369,3194.2,3194.1,3.498865]
[1720930814139,1.08463369,3194.2,3194.1,4.048865]
[1720930814832,1.08463369,3194.2,3193.7,3.13114]
[1720930815053,0.32800941,3194.3,3193.8,6.68106]
[1720930815352,1.08455776,3194.2,3193.8,6.68106]
[1720930815562,0.32800941,3194.3,3193.8,6.68106]
[1720930815769,1.08458698,3194.2,3193.8,6.68106]
[1720930816042,1.08458698,3194.1,3193.9,0.668106]
[1720930816216,0.32800941,3194.3,3194.0,0.55]
[1720930816552,1.08459811,3194.2,3194.0,0.55]
[1720930816756,0.32800941,3194.3,3194.0,0.55]
[1720930816926,1.08449399,3194.2,3194.0,0.55]
[1720930817114,0.32800941,3194.3,3194.0,1.5980066]
[1720930817311,1.08448962,3194.2,3194.0,1.5980066]
[1720930817516,0.32800941,3194.3,3194.0,1.5980066]
[1720930817735,1.08448216,3194.2,3194.0,4.7288666]
[1720930817957,1.08450722,3194.1,3194.0,4.7288666]
[1720930818247,0.32800941,3194.3,3194.0,4.7288666]
[1720930818562,0.32800941,3194.3,3194.0,1.5980066]
[1720930818563,1.08445081,3194.2,3194.0,1.5980066]
[1720930818707,0.32800941,3194.3,3194.0,0.55]
[1720930818919,0.32800941,3194.3,3194.2,3.13067]
[1720930819149,0.32800941,3194.3,3194.2,3.68067]
[1720930819329,1.41253706,3194.3,3194.2,3.68067]
[1720930819530,1.41253706,3194.3,3194.2,4.361813]
[1720930820462,1.41253706,3194.3,3194.2,3.811813]
[1720930821864,1.41253142,3194.3,3193.9,3.1309]
[1720930822080,1.08452201,3194.2,3194.0,3.1308]
[1720930822364,0.32800941,3194.3,3193.9,3.1309]
[1720930822365,1.08452201,3194.1,3193.9,3.1309]
[1720930822568,1.08452201,3194.0,3193.9,3.1309]
[1720930822865,1.08457306,3194.2,3194.0,3.13086]
[1720930823062,1.08457306,3194.1,3194.0,3.13086]
[1720930824061,1.08457306,3194.1,3194.0,6.26173]
[1720930824333,0.32800941,3194.3,3194.2,6.26134]
[1720930824561,0.32800941,3194.3,3194.2,9.26134]
[1720930825746,0.32800941,3194.3,3194.2,11.75354]
[1720930826466,0.32800941,3194.3,3194.2,9.26134]
[1720930827367,0.32800941,3194.3,3194.2,6.13067]
[1720930827583,1.41247648,3194.3,3193.9,3.13095]
[1720930827785,1.08446707,3194.2,3194.0,3.0]
[1720930828078,0.32800941,3194.3,3194.0,6.13085]
[1720930828277,1.08450749,3194.2,3194.0,6.13085]
[1720930828436,1.08450749,3194.1,3194.0,6.13085]
[1720930828777,1.0845292,3194.1,3194.0,6.13085]
[1720930831158,1.0845292,3194.1,3193.6,10.55125]
[1720930831354,1.08464717,3194.0,3193.7,6.13115]
[1720930831680,1.08464717,3193.9,3193.7,6.13115]
[1720930831882,1.08464717,3194.5,3193.7,3.0]
[1720930832077,0.32800888,3193.9,3193.7,3.0]
[1720930832281,1.08464717,3193.8,3193.7,3.0]
[1720930832478,0.32801,3193.9,3193.6,7.42]
[1720930832679,1.08464717,3193.8,3193.6,7.42]
[1720930834181,1.08464717,3193.8,3193.7,3.13116]
[1720930834401,1.08464717,3193.8,3193.7,4.4994]
[1720930834705,1.08467751,3193.8,3193.7,4.4994]
[1720930835509,1.08467751,3193.8,3193.7,3.13116]
[1720930835681,1.08467751,3193.8,3193.4,3.13142]
[1720930835878,1.08467751,3193.7,3193.4,3.13142]
[1720930836213,1.08467751,3193.6,3193.4,3.13142]
[1720930836367,1.08467751,3193.8,3193.4,3.13142]
[1720930836572,1.08467751,3193.8,3193.5,3.13134]
[1720930836971,1.08467751,3193.8,3193.5,3.444474]
[1720930837171,1.08467751,3193.8,3193.5,3.13134]
[1720930838075,1.08472445,3193.7,3193.0,13.55179]
[1720930838276,1.08472445,3193.6,3193.3,3.13155]
[1720930838505,1.08472445,3193.8,3193.3,3.13155]
[1720930838806,1.08472445,3193.7,3193.3,3.13155]
[1720930838994,1.08472445,3193.6,3193.3,3.13155]
[1720930839309,1.08472445,3193.5,3193.3,3.13155]
[1720930839600,0.32801,3193.9,3193.3,3.757878]
[1720930839802,1.08471596,3193.8,3193.3,3.757878]
[1720930840002,0.32801,3193.9,3193.3,3.757878]
[1720930840003,1.08471596,3193.7,3193.3,3.757878]
[1720930840208,1.08471596,3193.8,3193.3,3.757878]
[1720930840371,1.08471596,3193.7,3193.3,3.757878]
[1720930840571,1.08471596,3193.8,3193.3,3.757878]
[1720930840774,1.08471596,3193.8,3193.3,3.13155]
[1720930841291,0.32801,3193.9,3193.3,3.13155]
[1720930841466,1.08473361,3193.8,3193.3,3.13155]
[1720930841671,0.32801,3193.9,3193.3,3.13155]
[1720930841867,1.08473366,3193.8,3193.3,3.13155]
[1720930842094,1.08473366,3193.7,3193.3,3.13155]
[1720930842313,1.08473366,3193.6,3193.3,3.757878]
[1720930842611,1.08473366,3193.5,3193.3,3.757878]
[1720930842782,1.08473366,3193.4,3193.3,3.757878]
[1720930842976,1.08473366,3193.8,3193.4,3.13142]
[1720930844507,0.32801,3193.9,3193.4,3.13142]
[1720930844712,1.08475444,3193.8,3193.4,3.13142]
[1720930845624,1.08477418,3193.7,3193.4,3.13142]
[1720930845824,1.08477418,3193.6,3193.4,3.13142]
[1720930846131,1.08477418,3193.8,3193.4,3.13142]
[1720930846321,1.08477418,3193.8,3193.2,3.13164]
[1720930846322,1.08477418,3193.7,3193.0,10.55182]
[1720930846518,1.08477418,3193.7,3193.2,3.13158]
[1720930846719,1.08477418,3193.7,3193.3,3.13152]
[1720930846895,1.08477418,3193.8,3193.2,3.13158]
[1720930847099,1.08477418,3193.8,3193.4,3.13137]
[1720930847796,0.32801,3193.9,3193.4,3.13137]
[1720930847797,1.08480982,3193.7,3193.4,3.13137]
[1720930848000,1.08480982,3193.6,3193.4,3.13137]
[1720930848211,1.08480982,3193.5,3193.4,3.13137]
[1720930848409,1.08480982,3193.8,3193.4,3.13137]
[1720930848812,0.32803693,3193.7,3193.4,3.13137]
[1720930849027,1.08480982,3193.6,3193.5,3.13136]
[1720930849433,1.08480982,3193.6,3193.2,3.13165]
[1720930849623,1.08480982,3193.6,3193.3,3.13155]
[1720930850024,1.16309862,3193.6,3193.3,3.13155]
[1720930850336,3.55710982,3193.5,3193.3,3.13155]
[1720930850549,1.08480982,3193.4,3193.1,3.13173]
[1720930851039,2.4723,3193.5,3193.2,3.13164]
[1720930851215,1.08492135,3193.4,3193.2,3.13164]
[1720930851417,1.08492135,3193.3,3193.2,3.13164]
[1720930853298,1.08492135,3193.3,3193.2,6.889627]
[1720930854016,0.32803693,3193.7,3193.2,6.889627]
[1720930854017,0.32803693,3193.7,3193.6,6.26252]
[1720930854233,1.41275068,3193.7,3193.6,6.26252]
[1720930854432,1.41277374,3193.7,3193.6,6.26252]
[1720930854806,0.32803693,3193.7,3193.6,6.26252]
[1720930855013,0.32803693,3193.7,3193.6,6.888772]
[1720930855212,1.41276959,3193.7,3193.6,3.757512]
[1720930855715,1.41276959,3193.7,3193.6,6.888772]
[1720930857674,1.41269688,3193.7,3193.6,6.888772]
[1720930857977,0.32803693,3193.7,3193.6,6.888772]
[1720930858318,1.41269669,3193.7,3193.6,6.888772]
[1720930859562,1.41269669,3193.7,3193.6,10.020032]
[1720930859930,1.41269669,3193.7,3193.6,6.888772]
[1720930860620,0.32803693,3193.7,3193.6,6.888772]
[1720930860838,1.41266687,3193.7,3193.6,6.888772]
[1720930861465,1.41266687,3193.7,3193.6,10.020032]
[1720930861663,1.41266687,3193.7,3193.6,6.888772]
[1720930862463,1.41266687,3193.7,3193.6,10.020032]
[1720930862674,1.41266687,3193.7,3193.6,6.888772]
[1720930863077,1.41266687,3193.7,3193.6,10.020032]
[1720930863579,1.41263561,3193.7,3193.6,12.276332]
[1720930863780,0.32803693,3193.7,3193.6,15.276332]
[1720930864020,0.32803693,3193.7,3193.6,18.407592]
[1720930864293,2.3553,3194.9,3194.7,3.13013]
[1720930864442,1.32001414,3194.8,3194.7,3.13013]
[1720930865254,1.08448414,3194.8,3194.7,3.13013]
[1720930865438,1.08448414,3194.8,3194.7,6.26031]
[1720930866386,1.08448414,3194.8,3194.7,9.39049]
[1720930866535,1.08448414,3194.8,3194.4,3.13043]
[1720930866536,0.32795837,3194.9,3194.8,9.39024]
[1720930866740,0.32795837,3194.9,3194.8,12.39024]
[1720930866976,0.32795837,3194.9,3194.8,13.629264]
[1720930868242,0.32795837,3194.9,3194.8,10.499184]
[1720930870266,0.32795837,3194.9,3194.8,13.629264]
[1720930870842,0.32795837,3194.9,3194.8,15.885564]
[1720930872783,0.32795837,3194.9,3194.8,19.015644]
[1720930872984,2.3553,3196.2,3195.8,3.12904]
[1720930873195,2.3553,3196.2,3194.8,9.625404]
[1720930873196,2.59083,3196.2,3195.7,3.12919]
[1720930873492,1.41189605,3196.1,3195.7,3.12919]
[1720930873845,1.08402235,3196.0,3195.7,3.12919]
[1720930874130,1.08402235,3196.0,3195.8,3.1291]
[1720930874284,0.3278737,3196.1,3195.9,3.129]
[1720930874681,0.3278737,3196.1,3196.0,3.12891]
[1720930875178,0.3278737,3196.1,3196.0,6.883621]
[1720930875407,0.3278737,3196.1,3196.0,6.25782]
[1720930877514,0.3278737,3196.1,3195.8,3.12908]
[1720930877849,0.3278737,3196.1,3196.0,3.12891]
[1720930878305,0.3278737,3196.1,3195.9,3.12898]
[1720930878510,0.3278737,3196.1,3195.5,3.12936]
[1720930878511,2.6831737,3196.1,3195.5,3.12936]
[1720930878688,2.6831737,3196.1,3195.2,0.5386]
[1720930879012,2.6831737,3196.1,3195.3,3.12954]
[1720930879171,0.07823114,3196.0,3195.1,3.12978]
[1720930879375,0.62823114,3196.0,3195.1,3.12978]
[1720930879679,0.62823114,3196.0,3195.0,3.12984]
[1720930879881,1.08421329,3195.9,3195.0,3.12984]
[1720930880110,0.72124444,3195.8,3195.0,3.12984]
[1720930880408,0.55,3196.0,3195.0,3.12986]
[1720930880997,0.55,3196.0,3195.3,3.12959]
[1720930881203,2.6831737,3196.1,3195.5,3.12938]
[1720930881505,2.6831737,3196.1,3195.3,3.12959]
[1720930881506,2.6831737,3196.1,3195.7,3.12919]
[1720930882073,2.6831737,3196.1,3196.0,3.12891]
[1720930882280,0.3278737,3196.1,3196.0,3.754709]
[1720930882481,0.3278737,3196.1,3196.0,3.12891]
[1720930882690,0.3278737,3196.1,3196.0,6.25782]
[1720930883918,0.3278737,3196.1,3196.0,9.25782]
[1720930884412,0.3278737,3196.1,3196.0,12.38673]
[1720930884719,2.3606,3197.2,3196.7,3.12813]
[1720930884883,2.3606,3197.2,3196.0,6.182673]
[1720930885089,2.3606,3197.7,3196.9,3.12801]
[1720930885382,0.32780402,3197.1,3196.9,3.12801]
[1720930885618,2.3606,3197.7,3196.9,3.12801]
[1720930885829,0.327796,3197.1,3196.9,3.12801]
[1720930886112,0.96806,3197.6,3196.9,3.12801]
[1720930886317,0.32779833,3197.1,3197.0,3.12793]
[1720930886492,2.3606,3197.7,3197.1,3.12782]
[1720930887015,0.32774829,3197.6,3197.1,3.12782]
[1720930887189,0.32774829,3197.6,3196.5,3.0]
[1720930887190,0.32774829,3197.6,3197.2,3.12771]
[1720930887526,13.89,3198.9,3197.2,3.12771]
[1720930887527,2.3606,3198.5,3197.5,3.12744]
[1720930887740,0.3277224,3198.2,3197.2,3.12766]
[1720930887877,1.08345445,3198.1,3197.2,3.12766]
[1720930888080,1.1616413,3198.1,3197.2,3.12766]
[1720930888301,2.3606,3197.9,3197.0,3.1279]
[1720930888492,0.34440545,3197.8,3197.0,3.1279]
[1720930888689,0.34440545,3197.8,3197.1,3.12775]
[1720930889020,1.16182822,3197.7,3196.5,6.12842]
[1720930889206,0.07819198,3197.7,3196.6,3.12832]
[1720930889405,0.34440545,3197.8,3196.7,3.12822]
[1720930889406,1.63367647,3197.6,3196.7,3.12822]
[1720930889715,1.24704412,3197.5,3196.7,3.12822]
[1720930889927,0.16336765,3197.5,3196.7,3.12822]
[1720930890099,0.55,3197.6,3196.6,3.12832]
[1720930890282,1.08366834,3197.5,3196.6,3.12832]